fUST/lending_fUST_20260116
["ID","MTS","AMOUNT","RATE_DAILY","PERIOD"]
[402136517,1768542639951,-500.0,0.00013699,2]
[402136518,1768542639961,-500.0,0.00013699,2]
[402136519,1768542639971,-501.82620036,0.00013699,2]
[402136520,1768542639980,-500.0,0.00013699,2]
[402136521,1768542639990,-500.0,0.00013699,2]
[402136522,1768542640000,-500.0,0.00013699,2]
[402136523,1768542640010,-500.0,0.00013699,2]
[402136524,1768542640020,-622.93942038,0.00013699,2]
[402136525,1768542640032,-500.0,0.00013699,2]
[402136526,1768542640042,-500.0,0.00013699,2]
[402136527,1768542640052,-308.86248808,0.00013699,2]
[402136528,1768542640062,-500.0,0.00013699,2]
[402136529,1768542640072,-500.0,0.00013699,2]
[402136531,1768542640082,-500.0,0.00013699,2]
[402136533,1768542640091,-500.0,0.00013699,2]
[402136534,1768542640102,-597.74982003,0.00013699,2]
[402136535,1768542640112,-502.61209366,0.00013699,2]
[402136536,1768542640122,-500.0,0.00013699,2]
[402136537,1768542640131,-2060.41,0.00013775,2]
[402136538,1768542640141,-1000.0,0.00013821,2]
[402136539,1768542640150,-1000.0,0.00013821,2]
[402136540,1768542640160,-1005.85156425,0.00013821,2]
[402136541,1768542640169,-504.2764385,0.00013821,2]
[402136542,1768542640179,-1004.15629489,0.00013821,2]
[402136543,1768542640189,-500.47248142,0.00013821,2]
[402136544,1768542640202,-574.08865466,0.00013821,2]
[402136545,1768542640212,-459.81748108,0.00013821,2]
[402136546,1768542640222,-1000.0,0.00013821,2]
[402136547,1768542640231,-1000.0,0.00013821,2]
[402136548,1768542640246,-153.746666,0.00013821,2]
[402136549,1768542640256,-2000.0,0.00013962,7]
[402136550,1768542640266,-100000.0,0.00014006,2]
[402136551,1768542640276,-1058.13676823,0.00014121,2]
[402136552,1768542640289,-600.0,0.00014221,2]
[402136553,1768542640299,-505.35037186,0.00014247,2]
[402136554,1768542640309,-920.73215922,0.00014247,2]
[402136555,1768542640319,-1000.0,0.00014247,2]
[402136556,1768542640329,-431.73453214,0.00014247,2]
[402136557,1768542640339,-1000.0,0.00014247,2]
[402136558,1768542640349,-310.63775509,0.00014247,2]
[402136559,1768542640359,-1000.0,0.00014247,2]
[402136560,1768542640369,-194.1362209,0.00014247,2]
[402136561,1768542640380,-502.90945713,0.00014247,2]
[402136562,1768542640392,-250.0,0.00014247,2]
[402136563,1768542640402,-1000.0,0.00014247,2]
[402136564,1768542640411,-1002.84499725,0.00014247,2]
[402136565,1768542640422,-1000.0,0.00014247,2]
[402136566,1768542640432,-1000.0,0.00014247,2]
[402136567,1768542640442,-500.43334725,0.00014247,2]
[402136568,1768542640452,-1000.0,0.00014247,2]
[402136569,1768542640464,-1000.0,0.00014247,2]
[402136570,1768542640480,-1500.0,0.00014368,2]
[402136571,1768542640490,-1002.83955258,0.00014368,2]
[402136572,1768542640500,-1500.0,0.00014368,2]
[402136573,1768542640510,-1500.0,0.00014368,2]
[402136574,1768542640520,-5000.0,0.0001451,2]
[402136575,1768542640530,-1152.0,0.00014638,2]
[402136576,1768542640540,-2000.0,0.00014764,7]
[402136577,1768542640551,-303.86573033,0.00014768,2]
[402136578,1768542640560,-1500.0,0.00014795,2]
[402136579,1768542640570,-1500.0,0.00014795,2]
[402136580,1768542640580,-201.20977606,0.00014795,2]
[402136581,1768542640589,-1500.0,0.00014795,2]
[402136582,1768542640599,-1500.0,0.00014795,2]
[402136583,1768542640610,-243.42946379,0.00014795,2]
[402136584,1768542640620,-1500.0,0.00014795,2]
[402136585,1768542640630,-1201.29172815,0.00014795,2]
[402136586,1768542640639,-1004.04282277,0.00014916,2]
[402136587,1768542640649,-2000.0,0.00014916,2]
[402136588,1768542640658,-1085.06424983,0.00014916,2]
[402136589,1768542640668,-151.0,0.00015,2]
[402136590,1768542640679,-2000.0,0.000152,2]
[402136591,1768542640688,-2000.0,0.000152,2]
[402136592,1768542640697,-2000.0,0.000152,2]
[402136593,1768542640707,-2000.0,0.000152,2]
[402136594,1768542640717,-2000.0,0.000152,2]
[402136595,1768542640727,-609.84,0.000152,2]
[402136596,1768542640736,-1000.0,0.000152,2]
[402136597,1768542640746,-1000.0,0.000152,2]
[402136598,1768542640756,-1000.0,0.000152,2]
[402136599,1768542640766,-1000.0,0.000152,2]
[402136600,1768542640776,-1000.0,0.000152,2]
[402136601,1768542640787,-475.0,0.000152,2]
[402136602,1768542640797,-475.0,0.000152,2]
[402136603,1768542640806,-475.0,0.000152,2]
[402136604,1768542640816,-475.0,0.000152,2]
[402136605,1768542640825,-475.0,0.000152,2]
[402136606,1768542640835,-475.0,0.000152,2]
[402136607,1768542640844,-475.0,0.000152,2]
[402136608,1768542640854,-475.0,0.000152,2]
[402136609,1768542640863,-475.0,0.000152,2]
[402136610,1768542640872,-475.0,0.000152,2]
[402136611,1768542640882,-475.0,0.000152,2]
[402136612,1768542640891,-475.0,0.000152,2]
[402136613,1768542640901,-475.0,0.000152,2]
[402136614,1768542640910,-475.0,0.000152,2]
[402136615,1768542640919,-475.0,0.000152,2]
[402136616,1768542640929,-475.0,0.000152,2]
[402136617,1768542640938,-475.0,0.000152,2]
[402136618,1768542640947,-475.0,0.000152,2]
[402136619,1768542640957,-475.0,0.000152,2]
[402136620,1768542641358,-475.0,0.000152,2]
[402136621,1768542641368,-475.0,0.000152,2]
[402136622,1768542641378,-475.0,0.000152,2]
[402136623,1768542641390,-475.0,0.000152,2]
[402136624,1768542641399,-475.0,0.000152,2]
[402136625,1768542641408,-475.0,0.000152,2]
[402136626,1768542641418,-475.0,0.000152,2]
[402136627,1768542641429,-411.268,0.000152,2]
[402136628,1768542641438,-475.0,0.000152,2]
[402136629,1768542641448,-475.0,0.000152,2]
[402136630,1768542641460,-475.0,0.000152,2]
[402136631,1768542641469,-475.0,0.000152,2]
[402136632,1768542641479,-475.0,0.000152,2]
[402136633,1768542641488,-475.0,0.000152,2]
[402136634,1768542641497,-475.0,0.000152,2]
[402136635,1768542641506,-475.0,0.000152,2]
[402136636,1768542641515,-475.0,0.000152,2]
[402136637,1768542641524,-475.0,0.000152,2]
[402136638,1768542641535,-475.0,0.000152,2]
[402136639,1768542641543,-475.0,0.000152,2]
[402136640,1768542641553,-475.0,0.000152,2]
[402136641,1768542641562,-475.0,0.000152,2]
[402136642,1768542641571,-475.0,0.000152,2]
[402136643,1768542641580,-475.0,0.000152,2]
[402136644,1768542641589,-475.0,0.000152,2]
[402136645,1768542641598,-475.0,0.000152,2]
[402136646,1768542641608,-475.0,0.000152,2]
[402136647,1768542641617,-475.0,0.000152,2]
[402136648,1768542641627,-475.0,0.000152,2]
[402136649,1768542641636,-475.0,0.000152,2]
[402136650,1768542641645,-475.0,0.000152,2]
[402136651,1768542641654,-475.0,0.000152,2]
[402136652,1768542641663,-475.0,0.000152,2]
[402136653,1768542641673,-475.0,0.000152,2]
[402136654,1768542641682,-475.0,0.000152,2]
[402136655,1768542641691,-475.0,0.000152,2]
[402136656,1768542641700,-475.0,0.000152,2]
[402136657,1768542641709,-475.0,0.000152,2]
[402136658,1768542641719,-475.0,0.000152,2]
[402136659,1768542641728,-475.0,0.000152,2]
[402136660,1768542641737,-160.328,0.000152,2]
[402136661,1768542641747,-360.60425414,0.00015217,2]
[402136662,1768542641757,-606.16105087,0.00015342,2]
[402136663,1768542641766,-2066.58649571,0.00015342,2]
[402136664,1768542641775,-500.0,0.00015342,2]
[402136665,1768542641787,-891.24466261,0.00015342,2]
[402136666,1768542641796,-2000.0,0.00015342,2]
[402136667,1768542641806,-999.49955175,0.00015436,2]
[402136668,1768542641815,-3994.0002088,0.00015436,2]
[402136669,1768542641825,-2500.0,0.00015464,2]
[402136670,1768542641834,-2000.0,0.00015566,7]
[402136671,1768542641844,-500.0,0.00015576,2]
[402136672,1768542641853,-151.0,0.000157,2]
[402136673,1768542641862,-523.05675553,0.00015749,30]
[402136674,1768542641872,-901.60735931,0.00015749,30]
[402136675,1768542641881,-190.0,0.00015749,30]
[402136676,1768542641891,-1000.0,0.00015749,30]
[402136677,1768542641900,-1000.0,0.00015749,30]
[402136678,1768542641910,-500.0,0.00015749,30]
[402136679,1768542641920,-499.3,0.00015749,30]
[402136680,1768542641929,-1000.0,0.00015749,30]
[402136681,1768542641939,-500.0,0.00015749,30]
[402136682,1768542641949,-500.0,0.00015749,30]
[402136683,1768542641958,-1000.0,0.00015749,30]
[402136684,1768542641968,-791.6929879,0.00015749,30]
[402136685,1768542641978,-500.0,0.00015749,30]
[402136686,1768542641988,-500.0,0.00015749,30]
[402136687,1768542641997,-1000.0,0.00015749,30]
[402136688,1768542642006,-500.0,0.00015749,30]
[402136689,1768542642016,-1000.0,0.00015749,30]
[402136690,1768542642025,-500.0,0.00015749,30]
[402136691,1768542642036,-1000.0,0.00015749,30]
[402136692,1768542642046,-500.0,0.00015749,30]
[402136693,1768542642056,-1000.0,0.00015749,30]
[402136694,1768542642065,-500.0,0.00015749,30]
[402136695,1768542642075,-1000.0,0.00015749,30]
[402136696,1768542642085,-500.0,0.00015749,30]
[402136697,1768542642095,-1000.0,0.00015749,30]
[402136698,1768542642105,-500.0,0.00015749,30]
[402136699,1768542642115,-500.0,0.00015749,30]
[402136700,1768542642124,-1000.0,0.00015749,30]
[402136701,1768542642134,-500.0,0.00015749,30]
[402136702,1768542642143,-1000.0,0.00015749,30]
[402136703,1768542642153,-500.0,0.00015749,30]
[402136704,1768542642163,-1000.0,0.00015749,30]
[402136705,1768542642172,-500.0,0.00015749,30]
[402136706,1768542642181,-1000.0,0.00015749,30]
[402136707,1768542642192,-500.0,0.00015749,30]
[402136708,1768542642201,-500.0,0.00015749,30]
[402136709,1768542642211,-500.0,0.00015749,30]
[402136710,1768542642221,-500.0,0.00015749,30]
[402136711,1768542642231,-500.0,0.00015749,30]
[402136712,1768542642240,-500.0,0.00015749,30]
[402136713,1768542642250,-500.0,0.00015749,30]
[402136714,1768542642260,-500.0,0.00015749,30]
[402136715,1768542642270,-500.0,0.00015749,30]
[402136716,1768542642279,-500.0,0.00015749,30]
[402136717,1768542642292,-500.0,0.00015749,30]
[402136718,1768542642301,-500.0,0.00015749,30]
[402136719,1768542642310,-500.0,0.00015749,30]
[402136720,1768542642319,-500.0,0.00015749,30]
[402136721,1768542642328,-500.0,0.00015749,30]
[402136722,1768542642337,-500.0,0.00015749,30]
[402136723,1768542642346,-500.0,0.00015749,30]
[402136724,1768542642355,-500.0,0.00015749,30]
[402136725,1768542642364,-500.0,0.00015749,30]
[402136726,1768542642373,-500.0,0.00015749,30]
[402136728,1768542642383,-500.0,0.00015749,30]
[402136729,1768542642395,-500.0,0.00015749,30]
[402136730,1768542642404,-425.28129804,0.00015749,30]
[402136732,1768542642413,-652.47875155,0.00015749,30]
[402136734,1768542642423,-499.3,0.00015749,30]
[402136736,1768542642433,-2500.0,0.0001589,2]
[402136737,1768542642442,-3000.0,0.00016012,2]
[402136738,1768542642451,-1191.0,0.00016102,2]
[402136739,1768542642462,-500.0,0.00016159,2]
[402136740,1768542642472,-151.0,0.000162,2]
[402136741,1768542642481,-2000.0,0.00016368,7]
[402136742,1768542642490,-302.5,0.00016438,2]
[402136743,1768542642499,-151.60947319,0.00016438,2]
[402136745,1768542642508,-164.33129574,0.00016438,2]
[402136747,1768542642517,-3000.0,0.00016438,2]
[402136748,1768542642526,-200.10020518,0.00016473,2]
[402136749,1768542642536,-151.0,0.000165,2]
[402136750,1768542642545,-3500.0,0.0001656,2]
[402136751,1768542642555,-1041.66666667,0.00016932,2]
[402136752,1768542642563,-3500.0,0.00016986,2]
[402136753,1768542642573,-302.5,0.00017086,2]
[402136754,1768542642582,-1204.24,0.00017089,2]
[402136755,1768542642591,-1005.66172212,0.00017108,2]
[402136756,1768542642600,-2000.0,0.0001717,7]
[402136757,1768542642608,-402.75280333,0.00017217,2]
[402136758,1768542642617,-151.0,0.000173,2]
[402136759,1768542642626,-5000.0,0.00017412,2]
[402136760,1768542642635,-2513.63240842,0.00017534,2]
[402136761,1768542642644,-500.0,0.0001773,2]
[402136762,1768542642653,-500.0,0.0001773,2]
[402136763,1768542642662,-777.0,0.0001773,2]
[402136764,1768542642671,-500.0,0.0001773,2]
[402136765,1768542642680,-500.0,0.0001773,2]
[402136766,1768542642689,-500.0,0.0001773,2]
[402136767,1768542642698,-500.0,0.0001773,2]
[402136768,1768542642707,-418.0,0.0001773,2]
[402136769,1768542642716,-302.5,0.00017733,2]
[402136770,1768542642725,-500.0,0.00017867,2]
[402136771,1768542642734,-500.0,0.00017867,2]
[402136772,1768542642743,-777.0,0.00017867,2]
[402136773,1768542642752,-500.0,0.00017867,2]
[402136774,1768542642761,-500.0,0.00017867,2]
[402136775,1768542642770,-500.0,0.00017867,2]
[402136776,1768542642779,-500.0,0.00017867,2]
[402136777,1768542642790,-418.0,0.00017867,2]
[402136778,1768542642800,-200.51676946,0.00017867,2]
[402136779,1768542642809,-500.0,0.00017889,2]
[402136780,1768542642818,-500.0,0.00017889,2]
[402136781,1768542642827,-500.0,0.00017889,2]
[402136782,1768542642837,-500.0,0.00017889,2]
[402136783,1768542642846,-500.0,0.00017889,2]
[402136784,1768542642855,-500.0,0.00017889,2]
[402136785,1768542642864,-1204.24,0.00017889,2]
[402136786,1768542642874,-1204.24,0.00017889,2]
[402136788,1768542642884,-1204.24,0.00017889,2]
[402136790,1768542642894,-373.35384654,0.00017925,2]
[402136791,1768542642903,-1491.92197077,0.00017925,2]
[402136793,1768542642913,-2000.0,0.00017971,7]
[402136795,1768542642923,-1811.0,0.00017988,2]
[402136796,1768542642933,-525.74690785,0.00017989,2]
[402136798,1768542642943,-500.0,0.00017999,2]
[402136799,1768542642952,-196.19394324,0.00018004,2]
[402136800,1768542642962,-500.0,0.00018004,2]
[402136801,1768542642971,-341.79617025,0.00018004,2]
[402136802,1768542642981,-777.0,0.00018004,2]
[402136803,1768542642990,-500.0,0.00018004,2]
[402136804,1768542642999,-500.0,0.00018004,2]
[402136805,1768542643009,-500.0,0.00018004,2]
[402136806,1768542643019,-422.25431988,0.00018004,2]
[402136807,1768542643030,-418.0,0.00018004,2]
[402136808,1768542643042,-197.5385732,0.00018046,2]
[402136809,1768542643052,-194.246702,0.00018046,2]
[402136810,1768542643062,-151.0,0.000181,2]
[402136811,1768542643072,-500.0,0.00018141,2]
[402136812,1768542643082,-777.0,0.00018141,2]
[402136813,1768542643092,-500.0,0.00018141,2]
[402136814,1768542643101,-500.0,0.00018141,2]
[402136815,1768542643112,-500.0,0.00018141,2]
[402136816,1768542643121,-418.0,0.00018141,2]
[402136817,1768542643131,-380.7439369,0.00018178,2]
[402136818,1768542643141,-500.0,0.00018278,2]
[402136819,1768542643151,-200.49544179,0.00018278,2]
[402136820,1768542643160,-777.0,0.00018278,2]
[402136821,1768542643170,-371.65237339,0.00018278,2]
[402136822,1768542643181,-483.44353487,0.00018278,2]
[402136823,1768542643190,-500.0,0.00018278,2]
[402136824,1768542643200,-418.0,0.00018278,2]
[402136825,1768542643209,-1264.354271,0.00018278,7]
[402136826,1768542643219,-1811.0,0.00018305,2]
[402136827,1768542643228,-3551.096711,0.00018305,7]
[402136828,1768542643239,-40534.3798095,0.00018357,2]
[402136829,1768542643249,-217.01515767,0.00018364,2]
[402136830,1768542643259,-302.5,0.00018381,2]
[402136831,1768542643268,-500.0,0.00018415,2]
[402136832,1768542643278,-777.0,0.00018415,2]
[402136833,1768542643289,-500.0,0.00018415,2]
[402136834,1768542643298,-151.04172101,0.00018415,2]
[402136835,1768542643309,-418.0,0.00018415,2]
[402136836,1768542643320,-1594.0,0.00018458,2]
[402136837,1768542643330,-1654.905702,0.00018458,7]
[402136838,1768542643343,-949.530513,0.00018458,7]
[402136839,1768542643353,-1811.0,0.0001846,2]
[402136840,1768542643362,-1594.0,0.0001846,2]
[402136841,1768542643373,-194.246702,0.00018478,2]
[402136842,1768542643385,-1594.0,0.00018482,2]
[402136843,1768542643397,-1594.0,0.00018507,2]
[402136844,1768542643406,-949.521254,0.00018507,7]
[402136845,1768542643417,-500.0,0.00018552,2]
[402136846,1768542643428,-777.0,0.00018552,2]
[402136847,1768542643437,-500.0,0.00018552,2]
[402136848,1768542643448,-418.0,0.00018552,2]
[402136849,1768542643458,-1594.0,0.00018578,2]
[402136850,1768542643468,-1422.652152,0.00018578,7]
[402136851,1768542643478,-1594.0,0.00018607,2]
[402136852,1768542643487,-1215.172508,0.00018607,7]
[402136853,1768542643496,-400.61066,0.00018607,7]
[402136854,1768542643506,-1594.0,0.00018652,2]
[402136855,1768542643515,-3525.197707,0.00018652,7]
[402136856,1768542643525,-500.0,0.00018689,2]
[402136857,1768542643536,-777.0,0.00018689,2]
[402136858,1768542643545,-500.0,0.00018689,2]
[402136859,1768542643555,-418.0,0.00018689,2]
[402136860,1768542643565,-4536.386655,0.00018689,7]
[402136861,1768542643574,-162.380719,0.00018709,2]
[402136862,1768542643585,-151.0,0.00018709,2]
[402136863,1768542643595,-168.3888056,0.00018709,2]
[402136864,1768542643605,-151.0,0.00018709,2]
[402136865,1768542643614,-174.61919141,0.00018709,2]
[402136866,1768542643624,-151.0,0.00018709,2]
[402136867,1768542643633,-151.0,0.00018709,2]
[402136868,1768542643643,-181.08010149,0.00018709,2]
[402136869,1768542643652,-151.0,0.00018709,2]
[402136870,1768542643662,-151.0,0.00018709,2]
[402136871,1768542643671,-250.0,0.00018709,2]
[402136872,1768542643681,-187.78006525,0.00018709,2]
[402136873,1768542643690,-151.0,0.00018709,2]
[402136874,1768542643699,-151.0,0.00018709,2]
[402136875,1768542643776,-151.0,0.00018709,2]
[402136876,1768542643786,-194.72792766,0.00018709,2]
[402136877,1768542643796,-242.73673634,0.00018709,2]
[402136878,1768542643805,-151.0,0.00018709,2]
[402136879,1768542643814,-170.4789278,0.00018709,2]
[402136880,1768542643823,-151.0,0.00018709,2]
[402136881,1768542643832,-201.93286099,0.00018709,2]
[402136882,1768542643841,-151.0,0.00018709,2]
[402136883,1768542643850,-151.0,0.00018709,2]
[402136884,1768542643860,-209.40437684,0.00018709,2]
[402136885,1768542643869,-151.0,0.00018709,2]
[402136886,1768542643878,-151.0,0.00018709,2]
[402136887,1768542643888,-217.15233878,0.00018709,2]
[402136888,1768542643897,-151.0,0.00018709,2]
[402136889,1768542643907,-1000.0,0.00018709,2]
[402136890,1768542643916,-2000.0,0.00018709,2]
[402136891,1768542643926,-151.0,0.00018709,2]
[402136892,1768542643935,-225.18697532,0.00018709,2]
[402136893,1768542643944,-151.0,0.00018709,2]
[402136894,1768542643953,-1000.0,0.00018709,2]
[402136895,1768542643963,-2000.0,0.00018709,2]
[402136896,1768542643972,-250.0,0.00018709,2]
[402136897,1768542643982,-151.0,0.00018709,2]
[402136898,1768542643992,-233.51889341,0.00018709,2]
[402136899,1768542644001,-151.0,0.00018709,2]
[402136900,1768542644011,-1000.0,0.00018709,2]
[402136901,1768542644022,-251.71795936,0.00018709,2]
[402136902,1768542644032,-151.0,0.00018709,2]
[402136903,1768542644042,-2000.0,0.00018709,2]
[402136904,1768542644052,-242.15909246,0.00018709,2]
[402136905,1768542644062,-151.0,0.00018709,2]
[402136906,1768542644073,-1000.0,0.00018709,2]
[402136907,1768542644083,-151.0,0.00018709,2]
[402136908,1768542644092,-2000.0,0.00018709,2]
[402136909,1768542644101,-251.11897888,0.00018709,2]
[402136910,1768542644111,-2597.2162153,0.00018709,2]
[402136911,1768542644120,-151.0,0.00018709,2]
[402136912,1768542644130,-1000.0,0.00018709,2]
[402136913,1768542644140,-151.0,0.00018709,2]
[402136914,1768542644149,-250.0,0.00018709,2]
[402136915,1768542644159,-2000.0,0.00018709,2]
[402136916,1768542644168,-260.4103811,0.00018709,2]
[402136917,1768542644178,-151.0,0.00018709,2]
[402136918,1768542644188,-1000.0,0.00018709,2]
[402136919,1768542644198,-151.0,0.00018709,2]
[402136920,1768542644207,-250.0,0.00018709,2]
[402136921,1768542644217,-2000.0,0.00018709,2]
[402136922,1768542644226,-270.0455652,0.00018709,2]
[402136923,1768542644236,-1000.0,0.00018709,2]
[402136924,1768542644246,-151.0,0.00018709,2]
[402136925,1768542644256,-151.0,0.00018709,2]
[402136926,1768542644266,-250.0,0.00018709,2]
[402136927,1768542644276,-2000.0,0.00018709,2]
[402136928,1768542644287,-1000.0,0.00018709,2]
[402136929,1768542644296,-280.03725112,0.00018709,2]
[402136930,1768542644306,-151.0,0.00018709,2]
[402136931,1768542644315,-151.0,0.00018709,2]
[402136932,1768542644325,-2000.0,0.00018709,2]
[402136933,1768542644334,-250.0,0.00018709,2]
[402136934,1768542644343,-290.39862941,0.00018709,2]
[402136935,1768542644353,-1000.0,0.00018709,2]
[402136936,1768542644362,-151.0,0.00018709,2]
[402136937,1768542644371,-151.0,0.00018709,2]
[402136938,1768542644383,-2000.0,0.00018709,2]
[402136939,1768542644392,-250.0,0.00018709,2]
[402136940,1768542644401,-301.1433787,0.00018709,2]
[402136941,1768542644410,-151.0,0.00018709,2]
[402136942,1768542644420,-1000.0,0.00018709,2]
[402136943,1768542644431,-151.0,0.00018709,2]
[402136944,1768542644441,-151.0,0.00018709,2]
[402136945,1768542644450,-2036.17781661,0.00018709,2]
[402136946,1768542644463,-250.0,0.00018709,2]
[402136947,1768542644472,-151.0,0.00018709,2]
[402136948,1768542644482,-1000.0,0.00018709,2]
[402136949,1768542644491,-250.0,0.00018709,2]
[402136950,1768542644499,-2150.738,0.00018709,2]
[402136951,1768542644508,-151.0,0.00018709,2]
[402136952,1768542644518,-250.0,0.00018709,2]
[402136953,1768542644527,-151.0,0.00018709,2]
[402136954,1768542644537,-250.0,0.00018709,2]
[402136955,1768542644546,-151.0,0.00018709,2]
[402136956,1768542644555,-250.0,0.00018709,2]
[402136957,1768542644564,-151.0,0.00018709,2]
[402136958,1768542644573,-328.72476139,0.00018709,2]
[402136959,1768542644582,-151.0,0.00018709,2]
[402136960,1768542644590,-151.0,0.00018709,2]
[402136961,1768542644599,-295.43657977,0.00018709,2]
[402136962,1768542644609,-151.0,0.00018709,2]
[402136963,1768542644618,-1000.0,0.00018709,2]
[402136964,1768542644627,-151.0,0.00018709,2]
[402136965,1768542644637,-151.0,0.00018709,2]
[402136966,1768542644645,-1000.0,0.00018709,2]
[402136967,1768542644655,-151.0,0.00018709,2]
[402136968,1768542644664,-151.0,0.00018709,2]
[402136969,1768542644673,-1000.0,0.00018709,2]
[402136970,1768542644682,-151.0,0.00018709,2]
[402136971,1768542644692,-151.0,0.00018709,2]
[402136972,1768542644701,-1000.0,0.00018709,2]
[402136973,1768542644709,-151.0,0.00018709,2]
[402136974,1768542644718,-1000.0,0.00018709,2]
[402136975,1768542644727,-151.0,0.00018709,2]
[402136976,1768542644736,-445.202766,0.00018709,2]
[402136977,1768542644745,-1000.0,0.00018709,2]
[402136978,1768542644755,-151.0,0.00018709,2]
[402136979,1768542644764,-1000.0,0.00018709,2]
[402136980,1768542644772,-151.0,0.00018709,2]
[402136981,1768542644781,-250.0,0.00018709,2]
[402136982,1768542644792,-151.0,0.00018709,2]
[402136983,1768542644801,-250.0,0.00018709,2]
[402136984,1768542644810,-201.00054159,0.00018709,2]
[402136985,1768542644819,-250.0,0.00018709,2]
[402136986,1768542644829,-250.0,0.00018709,2]
[402136987,1768542644838,-250.0,0.00018709,2]
[402136988,1768542644847,-30000.0,0.00018709,2]
[402136989,1768542644856,-250.0,0.00018709,2]
[402136990,1768542644865,-250.0,0.00018709,2]
[402136991,1768542644875,-250.0,0.00018709,2]
[402136992,1768542644884,-1594.0,0.0001871,2]
[402136993,1768542644893,-1594.0,0.0001873,2]
[402136994,1768542644902,-1594.0,0.00018755,2]
[402136995,1768542644912,-2000.0,0.00018773,7]
[402136996,1768542644921,-21305.20187938,0.00018813,30]
[402136997,1768542644931,-517.43203598,0.00018826,2]
[402136998,1768542644940,-777.0,0.00018826,2]
[402136999,1768542644949,-556.00368609,0.00018826,2]
[402137000,1768542644959,-418.0,0.00018826,2]
[402137001,1768542644968,-1971.759078,0.00018826,7]
[402137002,1768542644977,-5000.0,0.00018863,2]
[402137003,1768542644987,-500.0,0.00018867,2]
[402137004,1768542644996,-194.246702,0.00018868,2]
[402137005,1768542645005,-640.64270854,0.00018868,2]
[402137006,1768542645014,-2562.57083418,0.00018868,2]
[402137007,1768542645023,-5765.7843769,0.00018868,2]
[402137008,1768542645032,-604.74433036,0.00018868,2]
[402137009,1768542645044,-2416.55834413,0.00018868,2]
[402137010,1768542645053,-728.0,0.00018895,2]
[402137011,1768542645062,-1204.24,0.00018895,2]
[402137012,1768542645071,-303.10001603,0.000189,2]
[402137013,1768542645080,-500.0,0.00018912,2]
[402137014,1768542645090,-500.0,0.00018912,2]
[402137015,1768542645099,-1049.6475633,0.00018913,2]
[402137016,1768542645108,-728.0,0.00018938,2]
[402137017,1768542645117,-1204.24,0.00018951,2]
[402137018,1768542645126,-1204.24,0.00018951,2]
[402137019,1768542645135,-500.0,0.00018951,2]
[402137020,1768542645144,-500.0,0.00018951,2]
[402137021,1768542645153,-500.0,0.00018951,2]
[402137022,1768542645162,-777.0,0.00018963,2]
[402137023,1768542645171,-418.0,0.00018963,2]
[402137024,1768542645180,-565.66258989,0.00018968,39]
[402137025,1768542645189,-807.39056818,0.00018968,39]
[402137026,1768542645198,-1594.0,0.00018971,2]
[402137027,1768542645207,-1594.0,0.00018991,2]
[402137028,1768542645216,-749.675242,0.00018991,7]
[402137029,1768542645225,-1389.81296,0.00019007,7]